bitfinex/quotes_SOLUSD_20241229
["timestamp","ask_amount","ask_price","bid_price","bid_amount"]
[1735438202474,0.73573263,193.06,192.98,20.0]
[1735438202797,8.78690648,193.07,192.99,25.9]
[1735438203314,0.73573263,193.07,192.99,25.9]
[1735438207275,23.776884,193.06,192.99,25.9]
[1735438208500,23.776884,193.04,192.99,25.9]
[1735438209195,23.776884,193.06,192.99,25.9]
[1735438209576,23.776884,193.04,192.99,25.9]
[1735438209995,24.51261663,193.07,192.99,25.9]
[1735438210996,24.51261663,193.07,192.99,5.9]
[1735438211202,24.51261663,193.07,192.95,0.7771003]
[1735438211203,24.51261663,193.07,192.95,5.9]
[1735438211581,20.0,193.04,192.92,7.5269]
[1735438211903,23.776884,193.0,192.92,5.9]
[1735438212088,23.776884,192.98,192.91,25.9]
[1735438212285,0.73573263,192.97,192.91,25.9]
[1735438212498,0.73573263,192.97,192.91,5.9]
[1735438212978,23.776884,192.96,192.91,5.9]
[1735438213178,0.73573263,192.95,192.91,5.9]
[1735438213397,23.776884,192.94,192.91,5.9]
[1735438213702,0.73573263,192.93,192.84,17.82408789]
[1735438213999,23.776884,192.96,192.84,7.4897]
[1735438214293,23.776884,192.94,192.84,5.9]
[1735438214500,23.776884,192.92,192.84,5.9]
[1735438214712,23.776884,192.9,192.83,20.0]
[1735438214879,0.73573263,192.89,192.83,20.0]
[1735438215078,23.776884,192.88,192.83,20.0]
[1735438215294,23.776884,192.88,192.8,16.23438789]
[1735438215490,23.776884,192.9,192.8,16.23438789]
[1735438215696,23.776884,192.88,192.8,16.23438789]
[1735438215896,23.776884,192.9,192.83,20.0]
[1735438216089,23.776884,192.88,192.8,5.9]
[1735438216290,23.776884,192.9,192.83,20.0]
[1735438216598,0.73573263,192.91,192.83,20.0]
[1735438217002,23.776884,192.9,192.83,20.0]
[1735438217693,23.776884,192.91,192.83,20.0]
[1735438218503,0.73573263,192.96,192.83,20.0]
[1735438218504,20.0,192.94,192.83,36.23438789]
[1735438218705,0.73573263,192.96,192.84,17.01197267]
[1735438218891,0.73573263,192.96,192.85,10.33438789]
[1735438219206,0.73573263,192.96,192.88,25.9]
[1735438219407,23.776884,192.95,192.88,25.9]
[1735438219594,0.73573263,192.94,192.88,25.9]
[1735438219788,23.776884,192.95,192.88,25.9]
[1735438219994,0.73573263,192.94,192.88,25.9]
[1735438220303,23.776884,192.95,192.88,25.9]
[1735438220920,0.73573263,192.96,192.88,25.9]
[1735438221121,0.73573263,193.01,192.9,10.33438789]
[1735438221325,23.776884,193.0,192.9,10.33438789]
[1735438221504,0.73573263,193.01,192.9,10.33438789]
[1735438221505,23.776884,192.98,192.9,10.33438789]
[1735438222018,0.73573263,193.01,192.9,10.33438789]
[1735438222618,23.776884,193.0,192.9,10.33438789]
[1735438222818,0.73573263,192.99,192.93,25.9]
[1735438223030,0.73573263,193.01,192.93,25.9]
[1735438223246,8.1832,193.02,192.93,25.9]
[1735438223411,0.73573263,193.01,192.93,25.9]
[1735438225251,23.776884,193.0,192.93,25.9]
[1735438225461,0.73573263,192.99,192.93,25.9]
[1735438225934,23.776884,193.01,192.93,25.9]
[1735438226239,23.776884,193.01,192.94,20.0]
[1735438226835,0.73573263,193.06,192.91,11.11165605]
[1735438226836,8.91893263,193.06,192.95,20.0]
[1735438229440,8.91893263,193.06,192.95,25.9]
[1735438230339,23.776884,193.05,192.95,25.9]
[1735438230536,8.05117385,193.09,193.01,20.0]
[1735438230718,0.73573263,193.08,193.01,20.0]
[1735438230916,8.05117385,193.09,193.01,20.0]
[1735438231314,23.776884,193.08,193.02,20.0]
[1735438231725,23.776884,193.09,193.02,20.0]
[1735438231924,0.73573263,193.08,193.02,20.0]
[1735438232438,24.51261663,193.1,193.02,20.0]
[1735438241148,0.73573263,193.1,193.02,20.0]
[1735438241528,0.73573263,193.1,193.03,20.0]
[1735438242453,23.776884,193.09,193.02,20.0]
[1735438242855,23.776884,193.1,193.02,20.0]
[1735438243037,23.776884,193.1,193.04,20.0]
[1735438244053,23.776884,193.1,193.03,20.0]
[1735438244856,23.776884,193.1,193.04,20.0]
[1735438245233,23.776884,193.14,193.04,20.0]
[1735438245448,23.776884,193.12,193.04,20.0]
[1735438245757,23.776884,193.1,193.04,20.0]
[1735438245949,23.776884,193.14,193.04,20.0]
[1735438246148,23.776884,193.12,193.04,20.0]
[1735438246348,23.776884,193.1,193.04,20.0]
[1735438247258,23.776884,193.14,193.04,20.0]
[1735438247464,23.776884,193.12,193.04,20.0]
[1735438247761,23.776884,193.1,193.04,20.0]
[1735438247961,23.776884,193.14,193.04,20.0]
[1735438248164,23.776884,193.12,193.04,20.0]
[1735438248339,23.776884,193.1,193.04,20.0]
[1735438248546,23.776884,193.14,193.04,20.0]
[1735438248840,23.776884,193.12,193.04,20.0]
[1735438249057,23.776884,193.1,193.04,20.0]
[1735438249662,23.776884,193.14,193.04,20.0]
[1735438249862,23.776884,193.12,193.04,20.0]
[1735438250063,23.776884,193.1,193.04,20.0]
[1735438252764,23.776884,193.14,193.05,20.0]
[1735438252955,0.73573263,193.13,193.05,20.0]
[1735438253141,0.73573263,193.13,193.06,20.0]
[1735438253645,0.73573263,193.14,193.06,20.0]
[1735438253957,24.51261663,193.14,193.06,20.0]
[1735438254136,23.776884,193.13,193.06,20.0]
[1735438254664,23.776884,193.14,193.06,20.0]
[1735438254840,0.73573263,193.13,193.06,20.0]
[1735438257270,1.5818,193.15,193.06,25.9]
[1735438257458,2.31753263,193.15,193.06,25.9]
[1735438257850,23.776884,193.14,193.06,25.9]
[1735438258050,0.73573263,193.13,193.06,25.9]
[1735438259141,23.776884,193.14,193.06,25.9]
[1735438264576,1.5818,193.15,193.06,25.9]
[1735438265073,23.776884,193.14,193.06,25.9]
[1735438278300,6.122,193.16,193.06,36.23438789]
[1735438278485,8.78690648,193.2,193.06,36.23438789]
[1735438278486,8.05117385,193.19,193.1,20.0]
[1735438278688,0.73573263,193.18,193.1,20.0]
[1735438279085,23.776884,193.17,193.1,20.0]
[1735438279290,23.776884,193.17,193.05,1.5974]
[1735438279291,8.05117385,193.19,193.15,20.0]
[1735438280226,1.5919,193.2,193.15,20.0]
[1735438280403,6.95293263,193.21,193.15,20.0]
[1735438281221,6.2172,193.21,193.15,20.0]
[1735438281921,23.776884,193.2,193.15,20.0]
[1735438282307,0.73573263,193.24,193.15,20.0]
[1735438282806,2.32763263,193.25,193.15,17.01073504]
[1735438283013,0.73573263,193.25,193.15,6.67634715]
[1735438283325,23.776884,193.24,193.18,20.0]
[1735438283523,0.73573263,193.23,193.18,20.0]
[1735438283716,0.73573263,193.25,193.18,20.0]
[1735438284326,23.776884,193.24,193.18,20.0]
[1735438284827,0.73573263,193.23,193.18,20.0]
[1735438285010,24.51261663,193.27,193.18,20.0]
[1735438289011,24.51261663,193.27,193.11,8.22277457]
[1735438289012,23.776884,193.25,193.11,8.22277457]
[1735438289220,0.73573263,193.24,193.11,7.4465]
[1735438289523,23.776884,193.23,193.14,20.0]
[1735438289724,23.776884,193.21,193.14,20.0]
[1735438289920,23.776884,193.19,193.14,20.0]
[1735438290118,0.73573263,193.18,193.14,20.0]
[1735438290531,23.776884,193.23,193.11,7.4465]
[1735438290828,23.776884,193.21,193.14,20.0]
[1735438291033,23.776884,193.19,193.11,7.4465]
[1735438291209,0.73573263,193.18,193.11,7.4465]
[1735438292232,0.73573263,193.18,193.14,20.0]
[1735438292727,23.776884,193.17,193.09,5.9]
[1735438292930,23.776884,193.15,193.09,5.9]
[1735438293106,0.73573263,193.14,193.07,5.9]
[1735438293304,24.51261663,193.18,193.07,5.9]
[1735438293806,24.51261663,193.18,193.1,20.0]
[1735438294531,24.51261663,193.18,193.07,5.9]
[1735438295112,24.51261663,193.18,193.1,20.0]
[1735438297010,24.51261663,193.18,193.07,5.9]
[1735438300664,24.51261663,193.18,193.05,17.78088789]
[1735438300936,24.51261663,193.18,193.05,7.4465]
[1735438301133,24.51261663,193.18,193.08,20.0]
[1735438301461,24.51261663,193.18,193.07,10.33438789]
[1735438304262,24.51261663,193.18,193.07,16.23438789]
[1735438310472,24.51261663,193.18,193.07,5.9]
[1735438310769,23.776884,193.16,193.07,5.9]
[1735438310971,23.776884,193.14,193.07,5.9]
[1735438311150,0.73573263,193.13,193.07,5.9]
[1735438311351,23.776884,193.12,193.07,5.9]
[1735438311555,23.776884,193.1,193.02,16.23438789]
[1735438311769,24.51261663,193.16,193.05,20.0]
[1735438312470,24.51261663,193.16,193.02,5.9]
[1735438312957,24.51261663,193.16,193.05,20.0]
[1735438321075,0.73573263,193.16,193.1,20.0]
[1735438321249,8.05117385,193.18,193.11,16.23438789]
[1735438322281,0.73573263,193.19,193.11,16.23438789]
[1735438322465,0.73573263,193.24,193.11,16.23438789]
[1735438323578,23.776884,193.23,193.11,16.23438789]
[1735438323758,23.776884,193.21,193.11,16.23438789]
[1735438324070,23.776884,193.19,193.11,5.9]
[1735438324271,23.776884,193.17,193.12,20.0]
[1735438324573,23.776884,193.15,193.09,5.9]
[1735438324772,0.73573263,193.14,193.06,1.5679]
[1735438324972,23.776884,193.21,193.03,6.67654738]
[1735438324973,23.776884,193.15,193.03,5.9]
[1735438325182,23.776884,193.13,193.03,5.9]
[1735438325356,23.776884,193.11,193.06,20.0]
[1735438325557,23.776884,193.11,193.01,7.4679]
[1735438325558,23.776884,193.09,193.01,7.4679]
[1735438325882,23.776884,193.07,193.01,1.5679]
[1735438326082,20.0,193.12,193.01,11.90228789]
[1735438326268,7.916,193.15,193.01,11.90228789]
[1735438326269,0.73573263,193.11,193.01,11.90228789]
[1735438326467,24.51261663,193.14,193.01,11.90228789]
[1735438327975,24.51261663,193.14,193.02,30.33438789]
[1735438329986,24.51261663,193.14,193.02,20.0]
[1735438330367,24.51261663,193.14,193.01,1.5679]
[1735438330685,24.51261663,193.14,193.01,10.33438789]
[1735438331181,24.51261663,193.14,193.04,20.0]
[1735438331365,24.51261663,193.14,193.06,20.0]
[1735438334986,24.51261663,193.14,193.03,5.9]
[1735438335388,24.51261663,193.14,193.03,16.23438789]
[1735438339291,24.51261663,193.14,193.03,5.9]
[1735438340384,24.51261663,193.14,193.04,20.0]
[1735438342096,0.73573263,193.14,193.04,16.23438789]
[1735438342297,0.73573263,193.14,193.05,10.33438789]
[1735438342597,23.776884,193.13,193.05,10.33438789]
[1735438342798,23.776884,193.13,193.07,20.0]
[1735438343375,24.51261663,193.17,193.08,20.0]
[1735438347803,24.51261663,193.17,193.05,5.9]
[1735438348897,24.51261663,193.17,193.03,1.6562]
[1735438349404,32.56379048,193.17,193.04,20.0]
[1735438349701,32.56379048,193.17,193.05,20.0]
[1735438349903,23.776884,193.15,193.05,20.0]
[1735438350093,23.776884,193.13,193.04,20.0]
[1735438350294,23.776884,193.11,193.04,20.0]
[1735438350500,23.776884,193.09,193.04,20.0]
[1735438350715,23.776884,193.09,193.03,1.6562]
[1735438351209,23.776884,193.13,193.04,20.0]
[1735438351503,23.776884,193.11,193.04,20.0]
[1735438351701,23.776884,193.09,193.01,5.9]
[1735438351898,23.776884,193.07,193.0,1.6562]
[1735438352100,23.776884,193.05,192.98,11.9633]
[1735438352296,23.776884,193.13,193.01,20.0]
[1735438352492,23.776884,193.11,193.01,20.0]
[1735438352691,23.776884,193.09,193.01,20.0]
[1735438352909,23.776884,193.07,193.01,20.0]
[1735438353094,23.776884,193.1,192.99,10.33438789]
[1735438353294,23.776884,193.08,192.99,10.33438789]
[1735438353596,23.776884,193.06,192.99,10.33438789]
[1735438353789,24.51261663,193.11,192.99,10.33438789]
[1735438354002,24.51261663,193.11,193.02,20.0]
[1735438354604,24.51261663,193.11,193.0,30.33438789]
[1735438358088,24.51261663,193.11,193.04,20.0]
[1735438363560,24.51261663,193.11,193.05,10.33438789]
[1735438363723,0.73573263,193.14,193.05,10.33438789]
[1735438364051,0.73573263,193.14,193.06,10.33438789]
[1735438364338,23.776884,193.14,193.06,10.33438789]
[1735438364517,8.78690648,193.16,193.07,10.33438789]
[1735438365038,0.73573263,193.16,193.07,10.33438789]
[1735438365241,0.73573263,193.18,193.07,16.23438789]
[1735438366140,23.776884,193.17,193.07,16.23438789]
[1735438366440,23.776884,193.15,193.07,16.23438789]
[1735438366636,23.776884,193.17,193.07,16.23438789]
[1735438366817,23.776884,193.15,193.07,16.23438789]
[1735438367317,0.73573263,193.14,193.07,5.9]
[1735438367542,23.776884,193.13,193.07,5.9]
[1735438367741,0.73573263,193.12,193.07,5.9]
[1735438369745,24.51261663,193.18,193.07,5.9]
[1735438370543,24.51261663,193.18,193.05,36.23438789]
[1735438371245,24.51261663,193.18,193.05,25.9]
[1735438371944,32.56379048,193.18,193.05,25.9]
[1735438372314,32.56379048,193.18,193.05,5.9]
[1735438373045,23.776884,193.13,193.02,1.6178]
[1735438373225,0.73573263,193.12,193.02,1.6178]
[1735438373744,23.776884,193.11,193.04,20.0]
[1735438373949,23.776884,193.09,193.04,20.0]
[1735438374321,23.776884,193.07,192.99,7.5319]
[1735438374622,23.776884,193.05,192.99,1.6319]
[1735438375337,23.776884,193.1,192.99,1.6319]
[1735438375537,23.776884,193.08,192.99,1.6319]
[1735438375747,23.776884,193.06,192.99,1.6319]
[1735438376451,23.776884,193.1,193.01,20.0]
[1735438376741,23.776884,193.08,193.01,20.0]
[1735438376942,23.776884,193.06,193.01,20.0]
[1735438378148,23.776884,193.1,193.01,20.0]
[1735438378349,23.776884,193.08,193.01,20.0]
[1735438378646,23.776884,193.06,193.01,20.0]
[1735438378848,23.776884,193.1,193.01,20.0]
[1735438379034,23.776884,193.08,193.01,20.0]
[1735438379436,0.73573263,193.11,193.01,20.0]
[1735438380156,23.776884,193.1,193.01,20.0]
[1735438380328,23.776884,193.08,193.01,20.0]
[1735438382656,23.776884,193.06,192.99,21.6319]
[1735438382840,23.776884,193.04,193.01,20.0]
[1735438383340,24.51261663,193.11,193.01,20.0]
[1735438389058,24.51261663,193.11,193.0,10.33438789]
[1735438390659,24.51261663,193.11,192.99,31.96628789]
[1735438391435,24.51261663,193.11,192.99,37.86628789]
[1735438393458,24.51261663,193.11,193.0,10.33438789]
[1735438393657,24.51261663,193.11,192.99,37.86628789]
[1735438393861,24.51261663,193.11,193.0,10.33438789]
[1735438394460,24.51261663,193.11,193.0,16.23438789]
[1735438395953,24.51261663,193.11,193.0,5.9]
[1735438397661,24.51261663,193.11,193.0,16.23438789]
[1735438398060,24.51261663,193.11,193.03,20.0]
[1735438402465,24.51261663,193.11,193.0,5.9]
[1735438403452,24.51261663,193.11,193.02,20.0]
[1735438403853,24.51261663,193.11,192.99,5.9]
[1735438404457,32.56379048,193.11,192.99,5.9]
[1735438405167,8.05117385,193.1,192.99,5.9]
[1735438405374,24.51261663,193.09,192.99,5.9]
[1735438406475,24.51261663,193.09,192.99,20.0]
[1735438406853,24.51261663,193.09,193.0,20.0]
[1735438413883,24.51261663,193.09,192.99,10.33438789]
[1735438414069,0.73573263,193.1,193.02,10.33438789]
[1735438414267,0.73573263,193.11,193.02,10.33438789]
[1735438415284,23.776884,193.1,193.02,10.33438789]
[1735438415974,23.776884,193.1,193.05,20.0]
[1735438419186,23.776884,193.11,193.05,20.0]
[1735438419801,23.776884,193.11,193.06,20.0]
[1735438420598,23.776884,193.13,193.06,20.0]
[1735438420766,23.776884,193.11,193.06,20.0]
[1735438420961,0.73573263,193.1,193.05,20.0]
[1735438421372,23.776884,193.11,193.05,20.0]
[1735438421684,0.73573263,193.1,193.05,20.0]
[1735438421888,23.776884,193.11,193.05,20.0]
[1735438422886,0.73573263,193.12,193.05,20.0]
[1735438423086,0.73573263,193.12,193.06,20.0]
[1735438423291,24.51261663,193.13,193.06,20.0]
[1735438424180,24.51261663,193.13,193.04,30.33438789]
[1735438426175,24.51261663,193.13,193.04,20.0]
[1735438430486,24.51261663,193.13,193.07,20.0]
[1735438430689,0.73573263,193.16,193.06,10.33438789]
[1735438430884,0.73573263,193.16,193.07,20.0]
[1735438431999,23.776884,193.15,193.07,20.0]
[1735438433796,23.776884,193.16,193.07,20.0]
[1735438434597,23.776884,193.16,193.07,30.33438789]
[1735438434791,23.776884,193.16,193.08,10.33438789]
[1735438435100,23.776884,193.17,193.12,20.0]
[1735438435900,23.776884,193.18,193.12,20.0]
[1735438438213,0.73573263,193.19,193.13,20.0]
[1735438438375,0.73573263,193.2,193.13,20.0]
[1735438438794,23.776884,193.19,193.13,20.0]
[1735438439101,23.776884,193.19,193.12,20.0]
[1735438439102,0.73573263,193.18,193.12,20.0]
[1735438439988,23.776884,193.19,193.12,20.0]
[1735438440183,0.73573263,193.18,193.12,20.0]
[1735438440393,24.51261663,193.21,193.12,20.0]
[1735438440594,0.73573263,193.21,193.14,20.0]
[1735438440898,8.78690648,193.23,193.16,20.0]
[1735438441093,8.05117385,193.23,193.16,20.0]
[1735438441494,0.73573263,193.24,193.18,20.0]
[1735438442109,6.82633263,193.26,193.16,30.33438789]
[1735438442292,6.82633263,193.26,193.2,20.0]
[1735438442785,23.776884,193.25,193.18,20.0]
[1735438442980,23.776884,193.23,193.18,20.0]
[1735438443903,24.51261663,193.25,193.18,20.0]
[1735438445512,24.51261663,193.25,193.17,20.0]
[1735438445898,24.51261663,193.25,193.18,20.0]
[1735438446132,24.51261663,193.25,193.19,20.0]
[1735438459419,24.51261663,193.25,193.18,20.0]
[1735438462616,24.51261663,193.25,193.19,20.0]
[1735438463218,24.51261663,193.25,193.17,30.33438789]
[1735438465213,24.51261663,193.25,193.19,20.0]
[1735438469422,24.51261663,193.25,193.17,30.33438789]
[1735438469723,1.5397,193.28,193.17,30.33438789]
[1735438469724,0.73573263,193.28,193.21,10.33438789]
[1735438469921,0.73573263,193.29,193.22,10.33438789]
[1735438470114,0.73573263,193.32,193.26,20.0]
[1735438470703,0.73573263,193.32,193.25,10.33438789]
[1735438471204,1.6554,193.33,193.25,10.33438789]
[1735438471419,1.6554,193.33,193.24,10.33438789]
[1735438472116,23.776884,193.32,193.24,10.33438789]
[1735438472503,0.73573263,193.34,193.28,20.0]
[1735438475032,23.776884,193.33,193.28,20.0]
[1735438476334,23.776884,193.34,193.28,20.0]
[1735438476709,1.6554,193.37,193.28,20.0]
[1735438477033,23.776884,193.35,193.28,20.0]
[1735438477839,23.776884,193.36,193.28,20.0]
[1735438482033,23.776884,193.36,193.31,20.0]
[1735438482241,6.4623,193.4,193.32,20.0]
[1735438482531,0.73573263,193.39,193.32,20.0]
[1735438483125,23.776884,193.38,193.3,20.0]
[1735438483321,23.776884,193.38,193.3,30.33438789]
[1735438485460,23.776884,193.38,193.3,20.0]
[1735438485630,23.776884,193.36,193.3,20.0]
[1735438485938,0.73573263,193.35,193.3,20.0]
[1735438486439,24.51261663,193.39,193.3,20.0]
[1735438486922,24.51261663,193.39,193.31,20.0]
[1735438489720,24.51261663,193.39,193.29,30.33438789]
[1735438489922,24.51261663,193.39,193.31,20.0]
[1735438490764,24.51261663,193.39,193.3,20.0]
[1735438492059,24.51261663,193.39,193.31,20.0]
[1735438493382,24.51261663,193.39,193.29,30.33438789]
[1735438497648,24.51261663,193.39,193.3,30.33438789]
[1735438500563,0.73573263,193.44,193.37,20.0]
[1735438500777,0.73573263,193.44,193.35,10.33438789]
[1735438501066,0.73573263,193.44,193.38,20.0]
[1735438502034,23.776884,193.43,193.38,20.0]
[1735438502233,23.776884,193.41,193.38,20.0]
[1735438502532,0.73573263,193.44,193.37,10.33438789]
[1735438503372,0.73573263,193.44,193.35,25.9]
[1735438503532,0.73573263,193.44,193.35,36.23438789]
[1735438503947,23.776884,193.43,193.35,36.23438789]
[1735438504755,23.776884,193.44,193.39,20.0]
[1735438504955,7.6902,193.45,193.39,20.0]
[1735438505132,0.73573263,193.44,193.39,20.0]
[1735438505634,23.776884,193.43,193.35,5.9]
[1735438505834,23.776884,193.41,193.35,5.9]
[1735438506042,23.776884,193.39,193.35,20.0]
[1735438506235,0.73573263,193.38,193.35,20.0]
[1735438506442,23.776884,193.37,193.35,20.0]
[1735438506649,23.776884,193.37,193.33,20.0]
[1735438506843,24.51261663,193.44,193.33,20.0]
[1735438507050,24.51261663,193.44,193.29,10.33438789]
[1735438507752,24.51261663,193.44,193.32,20.0]
[1735438508661,24.51261663,193.44,193.28,7.4231]
[1735438508961,23.776884,193.4,193.28,11.85748789]
[1735438509164,0.73573263,193.39,193.28,11.85748789]
[1735438509772,23.776884,193.37,193.27,30.33438789]
[1735438509972,23.776884,193.35,193.27,30.33438789]
[1735438510258,23.776884,193.33,193.27,30.33438789]
[1735438511059,23.776884,193.36,193.27,20.0]
[1735438511259,0.73573263,193.35,193.27,30.33438789]
[1735438511559,23.776884,193.34,193.27,30.33438789]
[1735438511858,24.51261663,193.37,193.27,30.33438789]
[1735438512157,24.51261663,193.37,193.28,10.33438789]
[1735438522559,24.51261663,193.37,193.29,10.33438789]
[1735438522761,0.73573263,193.39,193.33,20.0]
[1735438523463,23.776884,193.38,193.32,20.0]
[1735438523670,23.776884,193.36,193.32,20.0]
[1735438524575,23.776884,193.34,193.25,6.67593284]
[1735438524877,23.776884,193.32,193.25,10.33438789]
[1735438526186,23.776884,193.35,193.28,20.0]
[1735438526352,0.73573263,193.34,193.28,20.0]
[1735438526752,23.776884,193.33,193.28,20.0]
[1735438528583,23.776884,193.35,193.28,20.0]
[1735438528782,23.776884,193.33,193.28,20.0]
[1735438529683,24.51261663,193.36,193.28,20.0]
[1735438530980,23.776884,193.35,193.27,20.0]
[1735438531178,23.776884,193.33,193.28,20.0]
[1735438532879,24.51261663,193.36,193.28,20.0]
[1735438533060,23.776884,193.35,193.28,20.0]
[1735438533261,23.776884,193.33,193.28,20.0]
[1735438533678,23.776884,193.35,193.28,20.0]
[1735438533989,23.776884,193.33,193.28,20.0]
[1735438534192,24.51261663,193.36,193.28,20.0]
[1735438543489,24.51261663,193.36,193.27,20.0]
[1735438543670,24.51261663,193.36,193.24,5.9]
[1735438543872,24.51261663,193.36,193.26,20.0]
[1735438544378,24.51261663,193.36,193.2,25.270063]
[1735438544582,6.3205,193.31,193.18,17.83168789]
[1735438544783,24.51261663,193.3,193.18,11.93168789]
[1735438544983,24.51261663,193.3,193.21,20.0]
[1735438545183,24.51261663,193.3,193.18,11.93168789]
[1735438545914,24.51261663,193.3,193.21,20.0]
[1735438547194,24.51261663,193.3,193.17,5.9]
[1735438547903,23.776884,193.28,193.18,20.0]
[1735438548098,23.776884,193.26,193.18,20.0]
[1735438548282,23.776884,193.24,193.15,10.33438789]
[1735438548606,23.776884,193.22,193.15,10.33438789]
[1735438548915,23.776884,193.28,193.18,20.0]
[1735438549091,23.776884,193.26,193.18,20.0]
[1735438549277,23.776884,193.24,193.18,20.0]
[1735438549478,23.776884,193.22,193.18,20.0]
[1735438549683,23.776884,193.22,193.14,5.9]
[1735438549684,23.776884,193.2,193.17,20.0]
[1735438549900,23.776884,193.26,193.17,20.0]
[1735438550106,23.776884,193.24,193.17,20.0]
[1735438550309,23.776884,193.24,193.14,10.33438789]
[1735438550310,23.776884,193.22,193.14,10.33438789]
[1735438550603,23.776884,193.2,193.14,10.33438789]
[1735438550804,23.776884,193.24,193.13,11.93168789]
[1735438551006,23.776884,193.22,193.16,20.0]
[1735438551212,23.776884,193.2,193.16,20.0]
[1735438552700,23.776884,193.23,193.16,20.0]
[1735438552903,0.73573263,193.22,193.16,20.0]
[1735438555399,23.776884,193.21,193.16,20.0]
[1735438556223,23.776884,193.23,193.13,11.93168789]
[1735438556400,0.73573263,193.22,193.13,11.93168789]
[1735438556719,23.776884,193.21,193.15,20.0]
[1735438557214,23.776884,193.19,193.14,20.0]
[1735438557713,24.51261663,193.24,193.14,20.0]
[1735438558017,0.73573263,193.24,193.15,20.0]
[1735438558190,23.776884,193.23,193.15,20.0]
[1735438558389,23.776884,193.21,193.16,20.0]
[1735438559798,23.776884,193.21,193.1,26.67645062]
[1735438559799,23.776884,193.23,193.15,20.0]
[1735438560012,23.776884,193.21,193.15,20.0]
[1735438560318,23.776884,193.23,193.15,20.0]
[1735438560501,23.776884,193.21,193.15,20.0]
[1735438561416,23.776884,193.23,193.15,20.0]
[1735438561614,23.776884,193.21,193.15,20.0]
[1735438562118,23.776884,193.23,193.15,20.0]
[1735438562293,23.776884,193.21,193.15,20.0]
[1735438562795,23.776884,193.23,193.15,20.0]
[1735438563002,23.776884,193.21,193.15,20.0]
[1735438563294,23.776884,193.23,193.15,20.0]
[1735438563510,23.776884,193.21,193.15,20.0]
[1735438563903,24.51261663,193.24,193.15,20.0]
[1735438570624,1.5662,193.23,193.09,16.23438789]
[1735438570800,23.776884,193.21,193.12,20.0]
[1735438571001,23.776884,193.19,193.12,20.0]
[1735438571302,23.776884,193.17,193.09,16.23438789]
[1735438571605,23.776884,193.22,193.09,16.23438789]
[1735438571809,23.776884,193.2,193.12,20.0]
[1735438572013,23.776884,193.18,193.12,20.0]
[1735438572203,23.776884,193.22,193.13,20.0]
[1735438572406,23.776884,193.2,193.13,20.0]
[1735438572605,23.776884,193.18,193.13,20.0]
[1735438575218,23.776884,193.22,193.13,20.0]
[1735438575517,23.776884,193.2,193.13,20.0]
[1735438575723,23.776884,193.18,193.13,20.0]
[1735438576324,23.776884,193.22,193.12,20.0]
[1735438576517,23.776884,193.2,193.12,20.0]
[1735438576703,23.776884,193.18,193.12,20.0]
[1735438580033,23.776884,193.22,193.1,10.33438789]
[1735438580325,23.776884,193.2,193.13,20.0]
[1735438580531,23.776884,193.18,193.13,20.0]
[1735438583317,23.776884,193.22,193.13,20.0]
[1735438583631,23.776884,193.2,193.13,20.0]
[1735438583824,23.776884,193.18,193.13,20.0]
[1735438585830,23.776884,193.16,193.08,8.2328]
[1735438586145,0.73573263,193.15,193.08,1.6063]
[1735438586310,23.776884,193.17,193.09,20.0]
[1735438586510,23.776884,193.15,193.1,20.0]
[1735438586933,23.776884,193.22,193.1,20.0]